bitfinex-derivatives/quotes_ETHF0:USTF0_20241017
["timestamp","ask_amount","ask_price","bid_price","bid_amount"]
[1729193070458,3.2078,2595.1,2595.0,4.2581682]
[1729193070653,3.2078,2595.1,2595.0,4.76119577]
[1729193071249,3.59319,2595.1,2595.0,3.25211306]
[1729193071552,3.59319,2595.1,2595.0,3.28449271]
[1729193071758,0.38539,2595.1,2595.0,4.76151588]
[1729193071960,1.39,2595.2,2595.0,4.37610588]
[1729193072153,1.77539,2595.2,2595.1,1.3916594]
[1729193075368,1.77539,2595.2,2595.1,0.38539]
[1729193075566,1.77539,2595.2,2595.1,1.3916594]
[1729193076364,1.77539,2595.2,2595.1,0.38539]
[1729193077474,2.31530042,2595.3,2595.2,0.38538]
[1729193077659,0.38537,2595.3,2595.2,2.60338]
[1729193077972,0.53993042,2595.3,2595.2,6.45618]
[1729193078268,0.53993042,2595.5,2595.4,0.38535]
[1729193078458,0.80521,2595.7,2595.4,0.38535]
[1729193078459,0.80521,2595.7,2595.6,0.38532]
[1729193078665,0.80521,2595.7,2595.6,1.77532]
[1729193079170,0.92524042,2595.7,2595.6,1.77532]
[1729193079365,1.39,2595.8,2595.6,1.77532]
[1729193079566,0.53993042,2595.9,2595.7,1.39]
[1729193079765,0.38528,2595.9,2595.8,1.60748]
[1729193079965,2.33263042,2596.0,2595.9,0.38528]
[1729193079966,0.53993042,2596.0,2595.9,0.38528]
[1729193080263,0.92519042,2596.0,2595.9,1.77528]
[1729193080571,0.53993042,2596.0,2595.9,1.77528]
[1729193081067,0.92519042,2596.0,2595.9,1.77528]
[1729193081263,0.53993042,2596.0,2595.9,1.77528]
[1729193081471,0.92519042,2596.0,2595.9,1.77528]
[1729193084374,0.38526,2596.0,2595.9,1.77528]
[1729193085171,0.798,2596.3,2595.9,1.39]
[1729193085377,2.73017177,2596.6,2596.2,1.39]
[1729193085577,2.57647,2596.6,2596.5,1.39]
[1729193085783,2.57647,2596.6,2596.5,1.77519]
[1729193086166,0.38517,2596.7,2596.6,0.38517]
[1729193086370,0.38517,2596.7,2596.6,1.77517]
[1729193086570,0.38517,2596.7,2596.6,1.39]
[1729193086769,0.38517,2596.7,2596.6,1.77517]
[1729193086964,0.20655203,2596.8,2596.6,1.39]
[1729193087169,0.77713,2596.9,2596.8,0.38514]
[1729193087676,0.77713,2596.9,2596.8,0.80844]
[1729193088073,0.77713,2596.9,2596.8,0.4233]
[1729193088377,0.38517,2596.7,2596.6,0.38516]
[1729193089973,0.38517,2596.7,2596.5,0.4233]
[1729193089974,0.38517,2596.6,2596.5,0.80848]
[1729193090167,0.38517,2596.6,2596.5,0.4233]
[1729193090374,0.38517,2596.6,2596.5,0.80849]
[1729193090568,0.38517,2596.6,2596.5,0.4233]
[1729193091574,0.38517,2596.6,2596.5,0.80849]
[1729193091766,0.38517,2596.6,2596.5,0.4233]
[1729193092777,0.38517,2596.6,2596.5,0.80849]
[1729193093183,0.38517,2596.6,2596.5,0.4233]
[1729193093380,0.38517,2596.6,2596.5,0.80849]
[1729193093877,0.38517,2596.6,2596.5,0.4233]
[1729193095877,0.96294,2596.6,2596.2,0.38523]
[1729193096073,0.38522,2596.3,2596.2,0.38523]
[1729193096273,0.38523,2596.3,2596.2,0.38523]
[1729193096677,0.38523,2596.2,2596.1,0.78673]
[1729193096872,0.8053,2596.5,2596.1,0.4015]
[1729193097075,0.38523,2596.3,2596.2,0.38523]
[1729193097274,0.38523,2596.2,2596.1,0.78673]
[1729193097788,1.76829,2596.5,2596.1,0.78673]
[1729193097789,0.38523,2596.3,2596.2,0.38523]
[1729193098783,0.38519,2596.5,2596.4,0.38519]
[1729193098983,0.38519,2596.5,2596.4,3.39519]
[1729193099179,0.38519,2596.5,2596.4,0.38519]
[1729193099481,0.3852,2596.5,2596.4,0.38519]
[1729193100385,0.38518,2596.6,2596.5,0.38518]
[1729193101278,0.2098112,2596.8,2596.2,3.01]
[1729193101479,0.38521,2596.5,2596.4,0.38519]
[1729193101680,2.17933,2596.9,2596.3,0.38521]
[1729193101681,0.38522,2596.4,2596.3,0.38521]
[1729193103679,0.96291,2596.7,2596.2,3.01]
[1729193103881,0.3852,2596.5,2596.4,0.38519]
[1729193104997,0.38521,2596.4,2596.3,0.3852]
[1729193106784,2.38762006,2596.9,2596.2,3.01]
[1729193106995,0.3852,2596.5,2596.4,0.38519]
[1729193107186,0.38519,2596.6,2596.5,0.38518]
[1729193107591,0.38516,2596.8,2596.7,0.38515]
[1729193107991,0.38516,2596.8,2596.7,1.77515]
[1729193108189,0.38516,2596.8,2596.7,1.77516]
[1729193108388,1.77516,2596.8,2596.7,1.77516]
[1729193109088,0.38516,2596.8,2596.7,1.77516]
[1729193109883,0.4111,2596.9,2596.6,0.4015]
[1729193110088,0.4111,2596.9,2596.3,3.01]
[1729193110089,0.3852,2596.5,2596.4,0.38518]
[1729193110381,0.3852,2596.5,2596.4,0.3852]
[1729193110581,0.4073,2596.6,2596.3,0.3962]
[1729193110796,0.4221,2596.4,2596.1,0.4219]
[1729193110992,0.38523,2596.2,2596.1,0.80714]
[1729193111591,0.4221,2596.4,2596.1,0.4219]
[1729193111791,0.80732,2596.4,2596.3,0.38522]
[1729193111994,0.38522,2596.4,2596.3,0.38522]
[1729193112198,0.4221,2596.5,2596.2,0.4297]
[1729193112397,0.38522,2596.3,2596.2,0.81492]
[1729193113090,0.3852,2596.5,2596.4,0.38518]
[1729193114691,0.96287,2596.8,2596.2,4.02271]
[1729193114692,0.38522,2596.3,2596.2,4.02271]
[1729193114896,0.38522,2596.3,2596.2,0.81491]
[1729193116792,0.3852,2596.5,2596.4,0.38519]
[1729193118299,0.38521,2596.4,2596.3,0.3852]
[1729193120200,0.38522,2596.3,2596.2,0.81493]
[1729193120607,0.4029,2596.4,2596.2,0.4297]
[1729193120804,0.78812,2596.4,2596.3,0.38522]
[1729193123506,0.38522,2596.4,2596.3,0.38522]
[1729193125107,0.38522,2596.3,2596.2,1.8211894]
[1729193125411,0.80842,2596.3,2596.2,1.8211894]
[1729193125910,0.4232,2596.3,2596.1,1.4281694]
[1729193126099,0.80483,2596.2,2596.1,0.80715]
[1729193126299,0.4196,2596.2,2596.1,0.80715]
[1729193126505,0.3852,2596.5,2596.1,3.86883694]
[1729193126803,0.3852,2596.5,2596.4,0.38519]
[1729193127005,0.38519,2596.6,2596.5,0.38517]
[1729193127208,2.93229479,2596.8,2596.4,0.4196]
[1729193127409,0.38517,2596.6,2596.5,0.4083]
[1729193129316,0.38517,2596.6,2596.4,0.8048]
[1729193129317,0.38519,2596.5,2596.4,0.8048]
[1729193129610,0.38519,2596.5,2596.1,2.47220271]
[1729193129611,0.3852,2596.4,2596.3,0.38522]
[1729193129811,1.6134,2596.4,2596.3,0.19309857]
[1729193130515,0.38523,2596.3,2596.2,1.39087249]
[1729193131113,0.38523,2596.3,2596.2,0.38522]
[1729193131406,0.38523,2596.3,2596.2,1.39087249]
[1729193131713,0.38523,2596.3,2596.2,0.38522]
[1729193131916,0.38523,2596.3,2596.2,1.39087249]
[1729193132615,0.38523,2596.3,2596.2,0.38522]
[1729193132914,0.38523,2596.3,2596.2,1.39087249]
[1729193133804,0.38523,2596.3,2596.2,0.38522]
[1729193134116,0.38523,2596.3,2596.2,1.39087249]
[1729193134316,0.38523,2596.3,2596.2,0.38523]
[1729193134520,0.38523,2596.2,2596.1,1.81418249]
[1729193134815,0.38523,2596.2,2596.1,1.00565249]
[1729193135019,2.7306055,2596.4,2596.0,1.81151249]
[1729193135222,0.77485,2596.1,2596.0,1.8126907]
[1729193135405,0.77485,2596.1,2596.0,3.2917925]
[1729193135611,0.77485,2596.1,2596.0,1.8126907]
[1729193136320,0.77485,2596.1,2596.0,3.29180554]
[1729193136816,0.77485,2596.1,2596.0,0.80586]
[1729193139717,0.38524,2596.2,2596.1,0.38523]
[1729193139916,2.20541,2596.4,2596.0,0.4206]
[1729193140217,0.38525,2596.1,2596.0,0.80584]
[1729193143919,0.38525,2596.1,2596.0,3.80466262]
[1729193144222,2.7448055,2596.4,2596.1,0.38523]
[1729193144223,0.38524,2596.2,2596.1,0.38523]
[1729193144419,0.38524,2596.2,2596.1,1.8748174]
[1729193145120,0.38524,2596.2,2596.1,3.79794157]
[1729193145720,0.53541388,2596.4,2596.1,17.74389822]
[1729193146021,0.38518,2596.6,2596.5,0.38517]
[1729193146216,0.38518,2596.6,2596.5,2.88089467]
[1729193146424,0.38518,2596.6,2596.5,1.39130727]
[1729193148519,0.38518,2596.6,2596.5,1.00613727]
[1729193148825,4.36811,2596.7,2596.3,1.39134727]
[1729193149022,0.3852,2596.4,2596.3,1.39134727]
[1729193149223,0.3852,2596.4,2596.3,2.88074318]
[1729193149426,0.3852,2596.4,2596.3,1.39134727]
[1729193150337,0.3852,2596.4,2596.3,2.88075516]
[1729193150535,0.3852,2596.4,2596.3,3.38372415]
[1729193150922,0.3852,2596.4,2596.3,0.38521]
[1729193151818,0.8063,2596.5,2596.2,0.4058]
[1729193152034,0.38522,2596.3,2596.2,0.79102]
[1729193153236,0.96302,2596.4,2595.7,7.22401447]
[1729193153523,0.96302,2596.4,2595.9,0.38526]
[1729193153524,0.38527,2596.0,2595.9,0.38526]
[1729193154529,0.79306,2596.1,2596.0,0.38526]
[1729193155133,0.4078,2596.1,2595.8,0.4189]
[1729193155333,0.79306,2596.1,2596.0,0.38526]
[1729193156931,0.38526,2596.0,2595.9,0.38526]
[1729193157124,0.79305,2596.1,2596.0,0.38526]
[1729193158128,1.19004,2596.2,2596.1,0.38525]
[1729193158328,1.19004,2596.2,2596.0,0.38525]
[1729193158329,0.38525,2596.1,2596.0,0.38525]
[1729193159231,0.38525,2596.1,2596.0,3.38456234]
[1729193159933,0.53541388,2596.5,2596.0,6.85131234]
[1729193160136,0.38524,2596.2,2596.1,3.68709112]
[1729193160434,0.38524,2596.2,2596.1,3.30209123]
[1729193160930,0.38524,2596.2,2596.1,2.68031525]
[1729193161533,0.7946,2596.3,2596.1,3.30221734]
[1729193161725,1.17983,2596.3,2596.2,1.00719911]
[1729193162733,1.17982,2596.3,2596.2,1.00719911]
[1729193162939,0.38523,2596.2,2596.1,2.19682911]
[1729193163236,0.38523,2596.2,2596.1,2.68036248]
[1729193163841,1.17983,2596.3,2596.2,0.38523]
[1729193164030,1.17983,2596.3,2596.2,2.88331368]
[1729193164331,1.17983,2596.3,2596.2,2.49808368]
[1729193164530,0.7946,2596.3,2596.1,1.0073712]
[1729193164735,0.38525,2596.1,2596.0,1.0073712]
[1729193165042,1.17983,2596.3,2596.2,0.38523]
[1729193165240,0.38523,2596.2,2596.1,1.79718524]
[1729193165435,0.38523,2596.2,2596.1,3.4046337]
[1729193165632,0.38523,2596.2,2596.1,2.90313149]
[1729193165825,0.38523,2596.2,2596.1,4.67838149]
[1729193166031,0.38523,2596.2,2596.1,2.80190405]
[1729193166232,0.38523,2596.2,2596.1,1.7943]
[1729193166427,0.38523,2596.2,2596.1,2.17955]
[1729193166634,0.38523,2596.2,2596.1,1.7943]
[1729193166831,0.38523,2596.2,2596.1,2.17955]
[1729193167535,0.38523,2596.2,2596.1,1.10127407]
[1729193167738,0.38523,2596.2,2596.1,1.39]
[1729193168339,0.38523,2596.2,2596.1,1.77525]
[1729193168535,0.38523,2596.2,2596.1,1.39]
[1729193168848,1.39,2596.2,2596.0,1.39]
[1729193169031,0.38525,2596.1,2596.0,1.39]
[1729193169438,0.38525,2596.1,2596.0,1.77526]
[1729193169836,0.38525,2596.1,2596.0,1.39]
[1729193171132,1.77525,2596.1,2596.0,1.39]
[1729193172247,0.38526,2596.0,2595.9,1.39]
[1729193172540,0.79136,2596.0,2595.9,1.39]
[1729193173235,0.79136,2596.0,2595.9,1.77528]
[1729193174139,0.79136,2596.0,2595.9,5.27366487]
[1729193174840,0.79136,2596.0,2595.9,4.88838487]
[1729193175136,0.79136,2596.0,2595.9,5.27366487]
[1729193175436,2.18136,2596.0,2595.9,0.38528]
[1729193175638,2.18136,2596.0,2595.9,3.49887253]
[1729193175843,14.8559,2596.0,2595.9,1.0091413]
[1729193176037,15.63686,2596.0,2595.8,1.0091413]
[1729193176238,5.6351,2595.9,2595.7,1.0091413]
[1729193176429,1.77529,2595.8,2595.7,1.0091413]
[1729193176631,1.77529,2595.8,2595.5,1.51368499]
[1729193176632,0.38531,2595.7,2595.6,1.0091413]
[1729193176831,6.02601,2595.7,2595.6,1.0091413]
[1729193177028,12.02601,2595.7,2595.6,1.0091413]
[1729193177240,12.02601,2595.7,2595.4,4.72148499]
[1729193177241,0.38532,2595.6,2595.5,1.0091413]
[1729193177542,0.38539,2595.1,2595.0,0.3854]
[1729193177740,0.38541,2595.0,2594.9,1.51368499]
[1729193177949,4.98321,2595.0,2594.9,1.48671686]
[1729193178249,4.98321,2595.0,2594.8,1.51368499]
[1729193178250,0.38542,2594.9,2594.8,1.51368499]
[1729193178434,0.77852,2594.9,2594.8,0.38544]
[1729193178633,0.38544,2594.8,2594.7,1.19065]
[1729193179037,0.38544,2594.8,2594.7,0.8052]
[1729193179935,0.38544,2594.8,2594.7,1.19065]
[1729193180639,0.3931,2594.9,2594.8,0.38544]
[1729193180845,3.2078,2595.3,2594.8,9.8536]
[1729193181051,3.2078,2595.3,2595.2,0.38537]
[1729193181237,3.59316,2595.4,2595.2,0.38537]
[1729193181437,3.59316,2595.4,2595.3,0.4259]
[1729193181639,3.59316,2595.4,2595.3,0.81126]
[1729193182233,3.59316,2595.4,2595.3,0.4259]
[1729193182438,3.59316,2595.4,2595.3,0.81126]
[1729193183256,3.2078,2595.4,2595.3,0.81126]
[1729193183439,3.59315,2595.4,2595.3,0.81126]
[1729193184547,0.38535,2595.4,2595.3,0.81126]
[1729193185748,0.38535,2595.4,2595.3,0.4259]
[1729193186051,0.38535,2595.4,2595.3,0.81126]
[1729193188451,3.2078,2595.5,2595.2,0.4076]
[1729193188651,3.2078,2595.5,2595.3,0.38536]
[1729193188652,0.38536,2595.4,2595.3,0.38536]
[1729193197049,6.2178,2595.5,2595.2,0.4076]
[1729193197362,0.38536,2595.3,2595.2,0.79297]
[1729193198853,0.38536,2595.4,2595.3,0.38536]
[1729193199445,0.38534,2595.5,2595.4,0.38534]
[1729193199951,1.77534,2595.5,2595.4,0.38534]
[1729193200348,0.38536,2595.4,2595.3,0.38535]
[1729193200554,1.77536,2595.4,2595.3,0.38535]
[1729193202354,0.38536,2595.3,2595.2,0.79296]
[1729193202559,1.77536,2595.3,2595.2,0.79296]
[1729193204154,1.77536,2595.3,2595.2,0.4076]
[1729193204355,1.77536,2595.3,2595.2,0.79298]
[1729193208168,3.5964,2595.6,2595.2,1.7976]
[1729193208377,3.5964,2595.6,2595.5,1.77534]
[1729193208378,3.2078,2595.6,2595.5,1.77534]
[1729193208861,3.2078,2595.6,2595.5,0.38534]
[1729193209067,3.2078,2595.6,2595.5,1.77534]
[1729193209258,0.38526,2596.1,2596.0,0.38526]
[1729193209458,1.77526,2596.1,2596.0,0.38526]
[1729193209663,1.77526,2596.1,2595.9,0.38527]
[1729193209664,0.38528,2596.0,2595.9,0.38527]
[1729193209860,0.38528,2595.9,2595.8,1.60048]
[1729193210053,1.77528,2595.9,2595.8,1.60048]
[1729193210258,0.3853,2595.8,2595.7,0.38529]
[1729193210467,1.7784,2595.8,2595.5,0.7934]
[1729193210662,1.77532,2595.6,2595.5,1.17873]
[1729193211966,1.77532,2595.6,2595.5,3.78627357]
[1729193212363,2.78,2595.6,2595.4,1.51032139]
[1729193212558,0.38535,2595.4,2595.3,5.10348139]
[1729193212760,1.77535,2595.4,2595.3,6.20098621]
[1729193212963,2.19005,2595.4,2595.3,6.20098621]
[1729193213270,2.19005,2595.4,2595.3,1.48286482]
[1729193213567,1.8047,2595.4,2595.2,1.51032139]
[1729193213867,0.38536,2595.3,2595.2,1.51032139]
[1729193214070,0.38536,2595.3,2595.2,3.37887143]
[1729193214567,0.38536,2595.3,2595.2,1.86855004]
[1729193215363,0.38536,2595.3,2595.2,3.3813154]
[1729193215564,0.38536,2595.3,2595.2,1.86855004]
[1729193215759,0.4147,2595.4,2595.2,3.88231189]
[1729193215966,0.80005,2595.4,2595.3,2.99604624]
[1729193216263,0.80005,2595.4,2595.3,2.99607373]
[1729193216569,0.80005,2595.4,2595.3,1.48317004]
[1729193218674,0.80005,2595.4,2595.3,3.49693189]
[1729193218966,0.80005,2595.4,2595.3,1.48317004]
[1729193219569,0.80005,2595.4,2595.3,3.49693189]
[1729193220265,0.80005,2595.4,2595.3,2.99750809]
[1729193220472,0.80005,2595.4,2595.3,1.48317004]
[1729193220770,0.80005,2595.4,2595.3,2.99790456]
[1729193220969,0.80005,2595.4,2595.3,2.99852296]
[1729193221571,0.80005,2595.4,2595.3,1.48426725]
[1729193221869,0.4147,2595.4,2595.2,1.51473452]
[1729193222071,0.80005,2595.4,2595.3,2.99902714]
[1729193223669,0.80005,2595.4,2595.3,1.48429262]
[1729193223869,0.38536,2595.3,2595.2,1.51473452]
[1729193224077,7.00086,2595.3,2595.2,1.48430013]
[1729193224274,0.38538,2595.2,2595.1,1.51473452]
[1729193224478,0.81458,2595.2,2595.1,2.99899683]
[1729193224972,0.38538,2595.2,2595.1,3.88341416]
[1729193225170,3.6055,2595.3,2595.1,6.46699345]
[1729193225171,3.2078,2595.3,2595.1,6.46699345]
[1729193225382,3.59318,2595.3,2595.2,4.29516148]
[1729193225774,3.59318,2595.3,2595.2,7.26441846]
[1729193225971,3.59318,2595.3,2595.2,4.29516148]
[1729193226476,3.59318,2595.3,2595.2,7.26502165]
[1729193226867,3.59318,2595.3,2595.2,3.79731626]
[1729193228565,0.38538,2595.3,2595.2,3.79731626]
[1729193229068,0.38538,2595.3,2595.2,2.28139963]
[1729193229373,0.38538,2595.3,2595.2,3.79731626]
[1729193229772,0.38538,2595.3,2595.2,3.79773774]
[1729193230771,0.38538,2595.3,2595.2,2.28182111]
[1729193231272,0.38538,2595.3,2595.2,0.79698]
[1729193231671,0.38538,2595.3,2595.2,2.28176209]
[1729193231878,0.38538,2595.3,2595.2,1.89638209]
[1729193232075,0.38538,2595.3,2595.2,2.28176209]
[1729193232278,0.38538,2595.3,2595.2,2.28174783]
[1729193234479,0.38538,2595.3,2595.2,2.28167578]
[1729193235483,0.38538,2595.3,2595.2,4.29543763]
[1729193235678,0.38538,2595.3,2595.2,2.28167578]
[1729193235879,1.77538,2595.3,2595.2,2.28167578]
[1729193236185,1.77538,2595.3,2595.2,2.28153444]
[1729193236981,1.77538,2595.3,2595.2,3.79715655]
[1729193238583,1.77538,2595.3,2595.2,2.28153444]
[1729193239281,1.77538,2595.3,2595.2,2.28105232]
[1729193239675,1.39,2595.3,2595.2,4.70191417]
[1729193239881,1.77536,2595.3,2595.2,7.67044538]
[1729193241080,1.77536,2595.3,2595.2,5.65668353]
[1729193241381,1.77536,2595.4,2595.2,6.66130353]
[1729193241572,1.77535,2595.4,2595.3,6.85551152]
[1729193241980,1.39,2595.4,2595.3,0.38535]
[1729193242181,1.39,2595.4,2595.3,3.25813913]
[1729193242988,3.2078,2595.5,2595.3,2.87278913]
[1729193243178,0.3927,2595.7,2595.3,2.87278913]
[1729193243179,0.38532,2595.7,2595.6,0.38531]
[1729193243386,1.77532,2595.7,2595.6,0.38531]
[1729193245177,0.38534,2595.6,2595.5,0.38532]
[1729193245387,1.77534,2595.6,2595.5,0.38532]
[1729193246293,0.38534,2595.6,2595.5,1.77532]
[1729193249295,0.38534,2595.6,2595.5,3.25720128]
[1729193250385,1.77534,2595.6,2595.5,2.99453733]
[1729193250586,13.0536,2595.6,2595.3,1.51265605]
[1729193250789,0.38538,2595.2,2595.1,1.51265605]
[1729193250999,0.38538,2595.2,2595.1,1.77539]
[1729193251189,0.38538,2595.2,2595.1,3.25796571]
[1729193251383,0.38538,2595.2,2595.1,4.48266571]
[1729193251590,0.38538,2595.2,2595.1,5.99611503]
[1729193251788,0.38538,2595.3,2595.2,0.38537]
[1729193251985,1.77538,2595.3,2595.2,2.99609071]
[1729193252190,1.77538,2595.3,2595.2,3.38147071]
[1729193252800,1.77536,2595.4,2595.3,0.38535]
[1729193253094,1.77536,2595.4,2595.3,1.86792543]
[1729193253287,1.77536,2595.4,2595.3,3.38144043]
[1729193253889,0.38534,2595.5,2595.4,0.38534]
[1729193254098,0.38534,2595.5,2595.4,1.86791543]
[1729193254791,0.4102,2595.6,2595.4,1.48257543]
[1729193254995,0.38533,2595.6,2595.5,3.7689534]
[1729193256083,0.38533,2595.6,2595.5,0.77332]
[1729193256997,0.38533,2595.6,2595.5,0.388]
[1729193257190,3.7996,2595.8,2595.2,4.72085797]
[1729193257498,3.7996,2595.8,2594.9,2.51720231]
[1729193257499,3.97344,2595.3,2594.9,4.72085797]
[1729193257797,0.38541,2595.0,2594.9,0.38541]
[1729193257992,2.12725518,2595.2,2595.1,0.38539]
[1729193258197,0.3854,2595.1,2595.0,0.38539]
[1729193258595,0.3854,2595.1,2594.9,0.4052]
[1729193258596,1.2,2595.2,2594.7,1.51305797]
[1729193258791,0.96349,2595.1,2594.6,5.14465797]
[1729193258993,0.38543,2594.9,2594.8,0.38543]
[1729193259395,0.38545,2594.8,2594.6,4.72085797]
[1729193259696,0.38545,2594.8,2594.7,0.38545]
[1729193259697,1.20365,2594.8,2594.7,0.38545]
[1729193260403,0.38545,2594.8,2594.7,0.38545]
[1729193260698,0.38545,2594.8,2594.7,0.80935]
[1729193262001,0.38544,2594.9,2594.8,0.38543]
[1729193262401,0.38544,2594.8,2594.7,0.80934]
[1729193262893,0.38544,2594.8,2594.7,0.4239]
[1729193263995,0.38548,2594.5,2594.3,5.10635797]
[1729193264194,0.38548,2594.5,2594.4,4.83566642]
[1729193264396,0.38548,2594.5,2594.4,6.85416189]
[1729193264599,1.20207,2594.6,2594.5,0.38548]
[1729193264801,1.20207,2594.6,2594.5,3.88765921]
[1729193265097,1.20207,2594.6,2594.5,1.86887214]
[1729193265500,1.20207,2594.6,2594.5,1.48339214]
[1729193265895,1.20207,2594.6,2594.5,2.9969333]
[1729193266800,1.20207,2594.6,2594.5,1.51354116]
[1729193267007,1.20207,2594.6,2594.5,2.99552073]
[1729193267300,0.8166,2594.6,2594.3,1.51354116]
[1729193267497,1.78029,2594.6,2594.2,1.51354116]
[1729193267810,0.3855,2594.4,2594.3,1.86737274]
[1729193268003,0.3855,2594.4,2594.3,3.3809139]
[1729193268195,0.8166,2594.6,2594.3,3.3809139]
[1729193268500,0.8166,2594.6,2594.3,0.38551]
[1729193269093,0.3855,2594.4,2594.3,0.38551]
[1729193272298,0.38552,2594.3,2594.2,0.38551]
[1729193273098,1.78029,2594.6,2594.1,0.8379]
[1729193273297,0.80433,2594.2,2594.1,1.22342]
[1729193273707,0.80433,2594.2,2594.1,2.70182918]
[1729193274114,0.80433,2594.2,2594.1,1.22342]
[1729193274403,0.4188,2594.2,2594.1,1.22342]
[1729193274704,0.38552,2594.3,2594.2,0.38553]
[1729193275201,0.38551,2594.4,2594.3,0.38551]
[1729193277306,0.4034,2594.6,2594.4,0.3855]
[1729193277510,0.4034,2594.6,2594.5,1.22527]
[1729193277511,0.38547,2594.6,2594.5,1.22527]
[1729193280109,0.38547,2594.6,2594.5,1.22528]
[1729193280407,0.38547,2594.6,2594.5,0.8398]
[1729193281103,3.6255,2594.7,2594.4,0.38549]
[1729193281104,0.38548,2594.5,2594.4,0.38549]
[1729193281301,0.3855,2594.4,2594.3,0.7986]
[1729193282008,0.3855,2594.5,2594.4,0.38548]
[1729193283206,7.59916,2594.7,2594.3,0.7986]
[1729193283207,0.3855,2594.4,2594.3,0.7986]
[1729193283913,0.3855,2594.5,2594.4,0.38549]
[1729193284315,0.3855,2594.4,2594.3,0.7986]
[1729193286509,3.6255,2594.7,2594.3,0.4131]
[1729193286711,0.38549,2594.5,2594.4,0.38548]
[1729193287512,4.58915,2594.7,2594.3,0.4131]
[1729193287715,0.3855,2594.4,2594.3,0.7986]
[1729193288812,4.58915,2594.7,2594.5,0.38547]
[1729193288813,0.38549,2594.6,2594.5,0.38547]
[1729193289307,0.3855,2594.5,2594.4,0.38549]
[1729193289514,0.38548,2594.6,2594.5,0.38547]
[1729193290504,0.3855,2594.5,2594.4,0.38549]
[1729193291818,0.38549,2594.6,2594.5,0.38547]
[1729193292912,3.6255,2594.7,2594.3,0.4131]
[1729193293120,3.6255,2594.7,2594.4,0.38548]
[1729193293121,0.3855,2594.5,2594.4,0.38548]
[1729193294105,1.7755,2594.5,2594.4,0.38548]
[1729193296319,1.39,2594.5,2594.3,1.8031]
[1729193296526,1.38136,2594.7,2594.2,1.92014116]
[1729193296527,1.8136,2594.4,2594.2,1.92014116]
[1729193296722,1.8136,2594.4,2594.1,2.42328707]
[1729193296723,0.38553,2594.2,2594.1,2.70817116]
[1729193296928,1.77553,2594.2,2594.1,3.78146479]
[1729193297922,1.77552,2594.3,2594.2,0.38553]
[1729193298126,1.77552,2594.3,2594.2,3.37686479]
[1729193298417,0.38551,2594.4,2594.3,0.38549]
[1729193298624,0.38551,2594.4,2594.3,3.29862997]
[1729193298823,0.38551,2594.4,2594.3,3.29860479]
[1729193299023,0.38551,2594.4,2594.3,3.80492479]
[1729193299223,1.7755,2594.5,2594.4,0.3855]
[1729193299426,1.7755,2594.5,2594.4,1.78003767]
[1729193300223,1.7755,2594.5,2594.4,3.25913399]
[1729193300433,1.7755,2594.5,2594.4,2.25179632]
[1729193300632,1.7755,2594.5,2594.4,3.25958427]
[1729193301126,1.36665,2594.7,2594.4,3.25958427]
[1729193301127,0.403,2594.7,2594.4,3.25629632]
[1729193301429,1.77546,2594.7,2594.6,0.38547]
[1729193302222,1.77546,2594.7,2594.6,1.0078466]
[1729193302223,1.39,2594.7,2594.6,1.0078466]
[1729193302531,0.38547,2594.6,2594.5,0.81297]
[1729193302722,1.77547,2594.6,2594.5,3.30188513]
[1729193302917,1.77547,2594.6,2594.5,1.82159037]
[1729193303123,1.77547,2594.6,2594.5,3.30207902]
[1729193303323,1.77547,2594.6,2594.5,3.80794747]
[1729193307329,1.77547,2594.6,2594.5,2.29440631]
[1729193307723,1.77547,2594.6,2594.5,2.29536566]
[1729193307933,1.77547,2594.6,2594.5,3.81021723]
[1729193308229,1.77547,2594.6,2594.5,2.99728014]
[1729193308819,11.62987,2594.6,2594.5,2.99728014]
[1729193309023,3.8544,2594.5,2594.3,1.01049077]
[1729193309226,0.38553,2594.2,2594.1,1.51488448]
[1729193309428,1.77553,2594.2,2594.1,2.01878707]
[1729193309620,1.77553,2594.2,2594.0,2.02186303]
[1729193309621,0.38554,2594.1,2594.0,2.02186303]
[1729193309826,5.14070391,2594.1,2593.9,2.02186303]
[1729193310030,2.18026,2594.0,2593.9,2.02209263]
[1729193310330,2.18026,2594.0,2593.9,4.9777109]
[1729193311735,0.38556,2594.0,2593.9,5.3632809]
[1729193312030,0.38555,2594.1,2594.0,0.38554]
[1729193312234,1.72459245,2594.3,2594.2,0.38553]
[1729193312429,1.72459245,2594.3,2594.2,3.33905495]
[1729193312430,0.38552,2594.3,2594.2,3.33905495]
[1729193312628,3.2078,2594.4,2594.3,0.38551]
[1729193312629,3.59331,2594.4,2594.3,0.38551]
[1729193312829,3.59331,2594.4,2594.3,2.40530836]
[1729193313637,3.5933,2594.4,2594.3,2.40530836]
[1729193313824,3.2078,2594.4,2594.3,5.35856818]
[1729193314029,0.38549,2594.5,2594.4,0.3855]
[1729193314430,0.38549,2594.5,2594.4,2.40510043]
[1729193315035,0.38549,2594.5,2594.4,0.3855]
[1729193315236,0.38549,2594.5,2594.4,2.40510043]
[1729193315533,0.8167,2594.6,2594.5,0.38547]
[1729193315534,0.38548,2594.6,2594.5,0.38547]
[1729193315732,0.38548,2594.6,2594.5,2.40507043]
[1729193316421,0.38548,2594.6,2594.5,0.38547]
[1729193316934,0.38548,2594.6,2594.5,0.77987]
[1729193317335,0.38548,2594.6,2594.5,2.29447073]
[1729193317527,0.38548,2594.6,2594.5,0.77987]
[1729193317930,0.38546,2594.7,2594.6,0.38545]
[1729193318130,0.38546,2594.7,2594.6,1.19655]
[1729193320330,3.59325,2594.8,2594.7,0.38545]
[1729193323336,3.2078,2594.8,2594.6,2.32570073]
[1729193323635,0.38545,2594.7,2594.6,2.71116073]
[1729193324426,0.38545,2594.7,2594.6,6.16772159]